fUSD/lending_fUSD_20250525
["ID","MTS","AMOUNT","RATE_DAILY","PERIOD"]
[362327556,1748195446937,-412.15,0.00019999,2]
[362327557,1748195446946,-420.0,0.00019999,2]
[362327558,1748195446955,-420.0,0.00019999,2]
[362327559,1748195446965,-420.0,0.00019999,2]
[362327560,1748195446975,-420.0,0.00019999,2]
[362327561,1748195446984,-179.48,0.00019999,2]
[362327562,1748195446994,-465.73,0.00019999,2]
[362327563,1748195447003,-158.53779163,0.00019999,2]
[362327564,1748195447013,-465.73,0.00019999,2]
[362327565,1748195447023,-465.73,0.00019999,2]
[362327566,1748195447032,-465.73,0.00019999,2]
[362327567,1748195447041,-465.73,0.00019999,2]
[362327568,1748195447051,-465.73,0.00019999,2]
[362327569,1748195447060,-465.73,0.00019999,2]
[362327570,1748195447071,-465.73,0.00019999,2]
[362327571,1748195447081,-465.73,0.00019999,2]
[362327572,1748195447091,-465.73,0.00019999,2]
[362327573,1748195447101,-465.73,0.00019999,2]
[362327574,1748195447110,-465.73,0.00019999,2]
[362327575,1748195447120,-465.73,0.00019999,2]
[362327576,1748195447129,-465.73,0.00019999,2]
[362327577,1748195447139,-465.73,0.00019999,2]
[362327578,1748195447148,-465.73,0.00019999,2]
[362327579,1748195447158,-465.73,0.00019999,2]
[362327580,1748195447167,-465.73,0.00019999,2]
[362327581,1748195447176,-465.96,0.00019999,2]
[362327582,1748195447186,-1262.48,0.00019999,2]
[362327583,1748195447195,-1262.48,0.00019999,2]
[362327584,1748195447205,-1262.48,0.00019999,2]
[362327585,1748195447214,-1262.48,0.00019999,2]
[362327586,1748195447224,-1262.48,0.00019999,2]
[362327587,1748195447233,-1262.48,0.00019999,2]
[362327588,1748195447243,-1262.48,0.00019999,2]
[362327589,1748195447252,-1262.48,0.00019999,2]
[362327590,1748195447261,-1262.48,0.00019999,2]
[362327591,1748195447271,-1262.48,0.00019999,2]
[362327592,1748195447280,-1262.48,0.00019999,2]
[362327593,1748195447289,-1262.48,0.00019999,2]
[362327594,1748195447299,-1262.48,0.00019999,2]
[362327595,1748195447308,-1262.48,0.00019999,2]
[362327596,1748195447317,-1262.48,0.00019999,2]
[362327597,1748195447327,-1262.48,0.00019999,2]
[362327598,1748195447337,-1262.48,0.00019999,2]
[362327599,1748195447346,-1262.48,0.00019999,2]
[362327600,1748195447356,-1262.5598,0.00019999,2]
[362327601,1748195447365,-1311.0,0.0002,2]
[362327602,1748195447375,-938.0,0.0002,2]
[362327603,1748195447384,-632.0,0.0002,2]
[362327604,1748195447394,-799.0,0.0002,2]
[362327605,1748195447403,-922.0,0.0002,2]
[362327606,1748195447413,-555.0,0.0002,2]
[362327607,1748195447596,-1463.0,0.0002,2]
[362327608,1748195447607,-586.0,0.0002,2]
[362327609,1748195447617,-1263.0,0.0002,2]
[362327610,1748195447626,-154.0,0.0002,2]
[362327611,1748195447637,-199.0,0.0002,2]
[362327612,1748195447646,-6918.0,0.0002,2]
[362327613,1748195447656,-4057.0,0.0002,2]
[362327614,1748195447666,-274.452,0.0002,2]
[362327615,1748195447676,-881.0,0.0002,2]
[362327616,1748195447685,-192.836,0.0002,2]
[362327617,1748195447696,-42639.79825003,0.0002,2]
[362327618,1748195447932,-704.2488977,0.0002,2]
[362327619,1748195447981,-163.85576032,0.000189,2]
[362327620,1748195447991,-2465.87231161,0.0002,2]
[362327621,1748195448002,-27641.81508703,0.0002,2]
[362327622,1748195448012,-57255.24724459,0.0002,2]
[362327625,1748195844727,-215.18909,0.00018894,2]
[362327626,1748195844750,-38.15677606,0.00018909,2]
[362327627,1748195846766,-211.84322394,0.00018909,2]
[362327628,1748195846789,-113.67359359,0.0001899,2]
[362327629,1748195848679,-136.32640641,0.0001899,2]
[362327630,1748195848703,-42.72111317,0.0001899,2]
[362327631,1748195850835,-157.27888683,0.0001899,2]
[362327632,1748195850862,-1.41223127,0.00019037,2]
[362327633,1748195852543,-200.0,0.00019037,2]
[362327634,1748195877762,-176.330591,0.00019037,2]
[362327635,1748195879708,-270.01898777,0.00019037,2]
[362327636,1748195881731,-200.0,0.00019037,2]
[362327637,1748195884337,-152.23818996,0.00019037,2]
[362327638,1748195884360,-156.70822735,0.0001908,2]
[362327645,1748195983314,388.84,0.00013699,2]
[362327649,1748196007753,164.77,0.00021945,30]
[362327668,1748196531908,154.49,0.00025639,120]
[362327671,1748196559129,-551.68981767,0.00017031,2]
[362327674,1748196631535,-706.57018233,0.00017031,2]
[362327675,1748196631545,-210.0,0.00017909,2]
[362327676,1748196631555,-336.66615873,0.000184,2]
[362327677,1748196631564,-432.11,0.00018586,2]
[362327678,1748196631573,-200.0,0.00018618,2]
[362327679,1748196631583,-1200.0,0.00018637,2]
[362327680,1748196631592,-11876.89,0.00018638,2]
[362327681,1748196631601,-150.0,0.00018639,7]
[362327682,1748196631611,-154.49,0.00018646,2]
[362327683,1748196631620,-1000.0,0.00018674,2]
[362327684,1748196631630,-707.48,0.00018685,2]
[362327685,1748196631639,-167.68482798,0.00018858,2]
[362327686,1748196631648,-155.64,0.00018883,2]
[362327687,1748196631657,-253.0,0.00018886,2]
[362327688,1748196631666,-155.64,0.00018895,2]
[362327689,1748196631675,-155.64,0.00018906,2]
[362327690,1748196631685,-155.64,0.00018918,2]
[362327691,1748196631694,-155.64,0.0001893,2]
[362327692,1748196631703,-155.64,0.00018942,2]
[362327693,1748196631713,-155.64,0.00018954,2]
[362327694,1748196631723,-164.68,0.00018958,2]
[362327695,1748196631733,-155.64,0.00018965,2]
[362327696,1748196631742,-155.64,0.00018977,2]
[362327697,1748196631751,-207.4,0.00018997,2]
[362327698,1748196631762,-1549.39129187,0.00019048,2]
[362327699,1748196631773,-167.68482797,0.00019078,2]
[362327700,1748196631783,-93.29177265,0.0001908,2]
[362327701,1748196631792,-300.0,0.00019165,2]
[362327703,1748196631802,-905.99844019,0.00019165,2]
[362327705,1748196631812,-668.65185757,0.00019165,2]
[362327707,1748196631821,-668.65185757,0.00019165,2]
[362327709,1748196631831,-151.0,0.00019165,2]
[362327711,1748196631841,-500.0,0.00019177,2]
[362327713,1748196631851,-500.0,0.00019177,2]
[362327715,1748196631862,-563.3,0.00019177,2]
[362327717,1748196631871,-420.0,0.00019178,2]
[362327719,1748196631881,-420.0,0.00019178,2]
[362327721,1748196631891,-334.49022393,0.00019178,2]
[362327723,1748196631901,-420.0,0.00019178,2]
[362327724,1748196631911,-420.0,0.00019178,2]
[362327725,1748196631920,-420.0,0.00019178,2]
[362327726,1748196631929,-171.56596346,0.00019178,2]
[362327727,1748196631939,-420.0,0.00019178,2]
[362327728,1748196631948,-420.0,0.00019178,2]
[362327730,1748196631958,-527.51738673,0.00019178,2]
[362327732,1748196631967,-420.0,0.00019178,2]
[362327734,1748196631977,-420.0,0.00019178,2]
[362327736,1748196631986,-420.0,0.00019178,2]
[362327738,1748196631995,-420.0,0.00019178,2]
[362327740,1748196632005,-438.54442079,0.00019178,2]
[362327742,1748196632014,-420.0,0.00019178,2]
[362327744,1748196632027,-485.62608394,0.00019178,2]
[362327746,1748196632036,-420.0,0.00019178,2]
[362327748,1748196632046,-445.18262219,0.00019178,2]
[362327750,1748196632063,-420.0,0.00019178,2]
[362327752,1748196632074,-420.0,0.00019178,2]
[362327754,1748196632090,-420.0,0.00019178,2]
[362327756,1748196632101,-420.0,0.00019178,2]
[362327758,1748196632111,-308.91247725,0.00019178,2]
[362327760,1748196632120,-420.0,0.00019178,2]
[362327762,1748196632129,-420.0,0.00019178,2]
[362327764,1748196632139,-420.0,0.00019178,2]
[362327766,1748196632149,-420.0,0.00019178,2]
[362327768,1748196632158,-287.85425911,0.00019178,2]
[362327769,1748196632167,-420.0,0.00019178,2]
[362327771,1748196632179,-420.0,0.00019178,2]
[362327773,1748196632188,-420.0,0.00019178,2]
[362327776,1748196632403,-420.0,0.00019178,2]
[362327777,1748196632415,-420.0,0.00019178,2]
[362327778,1748196632425,-420.0,0.00019178,2]
[362327779,1748196632434,-420.0,0.00019178,2]
[362327780,1748196632443,-420.0,0.00019178,2]
[362327781,1748196632453,-420.0,0.00019178,2]
[362327782,1748196632462,-506.44337824,0.00019178,2]
[362327783,1748196632472,-420.0,0.00019178,2]
[362327784,1748196632482,-420.0,0.00019178,2]
[362327785,1748196632492,-420.0,0.00019178,2]
[362327786,1748196632502,-4000.0,0.00019178,2]
[362327787,1748196632511,-466.79,0.00019178,2]
[362327788,1748196632520,-1258.26,0.00019295,2]
[362327789,1748196632530,-372.26311267,0.000194,2]
[362327790,1748196632539,-372.26311266,0.000194,2]
[362327791,1748196632550,-372.26311266,0.00019521,2]
[362327792,1748196632559,-163.41,0.00019541,2]
[362327793,1748196632569,-551.942106,0.00019599,2]
[362327794,1748196632578,-881.0,0.00019703,2]
[362327795,1748196632588,-6918.0,0.00019703,2]
[362327796,1748196632597,-4057.0,0.00019703,2]
[362327797,1748196632606,-154.0,0.00019703,2]
[362327798,1748196632615,-514.11865071,0.00019713,2]
[362327799,1748196632624,-2420.02,0.00019726,2]
[362327800,1748196632633,-150.0,0.0001973,2]
[362327801,1748196632643,-150.0,0.00019731,2]
[362327802,1748196632654,-150.0,0.00019733,2]
[362327803,1748196632663,-150.0,0.00019738,2]
[362327804,1748196632672,-150.0,0.0001974,2]
[362327805,1748196632681,-150.0,0.00019751,2]
[362327806,1748196632690,-150.0,0.00019752,2]
[362327807,1748196632700,-150.0,0.00019752,2]
[362327808,1748196632710,-150.0,0.00019755,2]
[362327809,1748196632719,-150.0,0.00019755,2]
[362327810,1748196632727,-150.0,0.00019763,2]
[362327811,1748196632736,-150.0,0.00019763,2]
[362327812,1748196632745,-150.0,0.00019766,2]
[362327813,1748196632754,-150.0,0.00019771,2]
[362327814,1748196632764,-150.0,0.00019773,2]
[362327815,1748196632774,-150.0,0.0001978,2]
[362327816,1748196632783,-150.0,0.00019783,2]
[362327817,1748196632792,-150.0,0.00019787,2]
[362327818,1748196632802,-150.0,0.00019787,2]
[362327819,1748196632812,-420.0,0.00019788,2]
[362327820,1748196632821,-420.0,0.00019788,2]
[362327821,1748196632831,-150.0,0.00019789,2]
[362327822,1748196632840,-150.0,0.00019794,2]
[362327823,1748196632849,-150.0,0.00019797,2]
[362327824,1748196632859,-150.0,0.00019804,2]
[362327825,1748196632868,-150.0,0.00019806,2]
[362327826,1748196632877,-150.0,0.00019807,2]
[362327827,1748196632887,-150.0,0.00019809,2]
[362327828,1748196632896,-150.0,0.00019818,2]
[362327829,1748196632907,-150.0,0.00019818,2]
[362327830,1748196632916,-150.0,0.00019819,2]
[362327831,1748196632926,-150.0,0.00019824,2]
[362327832,1748196632935,-150.0,0.00019826,2]
[362327833,1748196632944,-150.0,0.00019828,2]
[362327834,1748196632954,-150.0,0.0001983,2]
[362327835,1748196632966,-150.0,0.0001983,2]
[362327836,1748196632977,-150.0,0.00019831,2]
[362327837,1748196632987,-372.26311266,0.00019831,2]
[362327838,1748196632997,-150.0,0.00019834,2]
[362327839,1748196633007,-150.0,0.00019838,2]
[362327840,1748196633017,-150.0,0.00019841,2]
[362327841,1748196633026,-150.0,0.00019843,2]
[362327842,1748196633035,-150.0,0.00019846,2]
[362327843,1748196633044,-150.0,0.00019848,2]
[362327844,1748196633053,-150.0,0.0001985,2]
[362327845,1748196633062,-150.0,0.00019856,2]
[362327846,1748196633072,-275.95977431,0.00019866,2]
[362327847,1748196633082,-458.08329201,0.00019883,2]
[362327848,1748196633094,-150.0,0.00019887,2]
[362327849,1748196633104,-5494.79994276,0.00019894,2]
[362327850,1748196633214,-2982.74685724,0.00019894,2]
[362327851,1748196633225,-1000.0,0.00019894,2]
[362327852,1748196633235,-172.23107713,0.00019895,2]
[362327853,1748196633245,-500.0,0.00019895,2]
[362327854,1748196633255,-172.23107711,0.00019896,2]
[362327855,1748196633266,-579.56169656,0.00019898,2]
[362327856,1748196633279,-1339.99200292,0.00019898,2]
[362327857,1748196633291,-807.57599708,0.00019898,2]
[362327858,1748196633304,-1111.9777024,0.00019898,2]
[362327859,1748196633314,-1919.55369948,0.00019899,2]
[362327860,1748196633324,-214.44780888,0.00019899,2]
[362327861,1748196633334,-214.44780881,0.00019899,2]
[362327862,1748196633344,-214.44780881,0.00019899,2]
[362327863,1748196633354,-214.44780881,0.00019899,2]
[362327864,1748196633364,-1919.55369948,0.00019899,2]
[362327865,1748196633373,-214.44780881,0.00019899,2]
[362327866,1748196633383,-214.44780881,0.000199,2]
[362327867,1748196633393,-214.44780881,0.000199,2]
[362327868,1748196633404,-214.44780881,0.000199,2]
[362327869,1748196633414,-214.44780881,0.000199,2]
[362327870,1748196633424,-2835.5945658,0.000199,2]
[362327871,1748196633434,-493.95199855,0.000199,2]
[362327872,1748196633443,-996.753,0.000199,2]
[362327873,1748196633453,-178.158,0.000199,2]
[362327874,1748196633463,-1919.55369948,0.000199,2]
[362327875,1748196633472,-214.44780881,0.000199,2]
[362327876,1748196633481,-150.0,0.000199,2]
[362327877,1748196633491,-1717.46796427,0.000199,2]
[362327878,1748196633501,-1491.75913876,0.000199,2]
[362327879,1748196633511,-5658.22628111,0.000199,2]
[362327880,1748196633523,-794.31037443,0.000199,2]
[362327881,1748196633534,-4168.92017442,0.000199,2]
[362327882,1748196633546,-216.46875942,0.000199,2]
[362327883,1748196633556,-150.0,0.00019904,2]
[362327884,1748196633565,-25.39627058,0.00019913,2]
[362327885,1748196633577,-124.60372942,0.00019913,2]
[362327886,1748196633587,-150.0,0.00019923,2]
[362327887,1748196633596,-150.0,0.00019923,2]
[362327888,1748196633606,-150.0,0.00019929,2]
[362327889,1748196633616,-150.0,0.00019931,2]
[362327890,1748196633626,-150.0,0.00019947,2]
[362327891,1748196633635,-150.0,0.00019951,2]
[362327892,1748196633644,-71.36157938,0.00019952,2]
[362327893,1748196633657,-78.63842062,0.00019952,2]
[362327894,1748196633667,-150.0,0.00019955,2]
[362327895,1748196633676,-205.74297023,0.00019959,2]
[362327896,1748196633685,-150.0,0.00019961,2]
[362327897,1748196633695,-261.8728931,0.00019963,2]
[362327898,1748196633705,-150.0,0.00019966,2]
[362327899,1748196633715,-150.0,0.00019967,2]
[362327900,1748196633726,-150.0,0.00019971,2]
[362327901,1748196633736,-150.0,0.00019972,2]
[362327902,1748196633746,-500.0,0.00019973,2]
[362327903,1748196633755,-500.0,0.00019973,2]
[362327904,1748196633764,-500.0,0.00019973,2]
[362327905,1748196633773,-500.0,0.00019973,2]
[362327906,1748196633783,-500.0,0.00019973,2]
[362327907,1748196633792,-500.0,0.00019973,2]
[362327908,1748196633802,-226.06,0.00019978,2]
[362327909,1748196633813,-469.99,0.0001998,2]
[362327910,1748196633822,-470.0,0.0001998,2]
[362327911,1748196633831,-470.0,0.0001998,2]
[362327912,1748196633841,-351.93731854,0.0001998,2]
[362327913,1748196633850,-150.0,0.00019982,2]
[362327914,1748196633860,-150.0,0.00019988,2]
[362327915,1748196633870,-5347.95,0.00019989,2]
[362327916,1748196633879,-150.0,0.00019989,2]
[362327917,1748196633890,-210.98761785,0.0001999,2]
[362327918,1748196633899,-177.19685162,0.00019991,2]
[362327919,1748196633909,-420.0,0.00019993,2]
[362327920,1748196633919,-420.0,0.00019993,2]
[362327921,1748196633928,-871.57,0.00019993,2]
[362327922,1748196633938,-420.0,0.00019993,2]
[362327923,1748196633948,-420.0,0.00019993,2]
[362327924,1748196633959,-420.0,0.00019993,2]
[362327925,1748196633968,-535.43531642,0.00019993,2]
[362327926,1748196633978,-420.0,0.00019993,2]
[362327927,1748196633987,-420.0,0.00019993,2]
[362327928,1748196633996,-420.0,0.00019993,2]
[362327929,1748196634005,-420.0,0.00019994,2]
[362327930,1748196634017,-419.13892977,0.00019994,2]
[362327931,1748196634027,-420.0,0.00019994,2]
[362327932,1748196634037,-420.0,0.00019994,2]
[362327933,1748196634047,-420.0,0.00019994,2]
[362327934,1748196634057,-420.0,0.00019994,2]
[362327935,1748196634067,-420.0,0.00019994,2]
[362327936,1748196634079,-420.0,0.00019994,2]
[362327937,1748196634092,-385.84085052,0.00019994,2]
[362327938,1748196634102,-420.0,0.00019994,2]
[362327939,1748196634112,-420.0,0.00019994,2]
[362327940,1748196634123,-420.0,0.00019994,2]
[362327941,1748196634133,-420.0,0.00019994,2]
[362327942,1748196634143,-420.0,0.00019994,2]
[362327943,1748196634154,-420.0,0.00019994,2]
[362327944,1748196634164,-429.71654235,0.00019994,2]
[362327945,1748196634175,-420.0,0.00019994,2]
[362327946,1748196634184,-420.0,0.00019994,2]
[362327947,1748196634193,-471.184771,0.00019994,2]
[362327948,1748196634203,-420.0,0.00019994,2]
[362327949,1748196634212,-420.0,0.00019994,2]
[362327950,1748196634222,-420.0,0.00019994,2]
[362327951,1748196634231,-467.86966589,0.00019994,2]
[362327952,1748196634241,-420.0,0.00019994,2]
[362327953,1748196634251,-420.0,0.00019994,2]
[362327954,1748196634261,-434.0558562,0.00019994,2]
[362327955,1748196634270,-420.0,0.00019994,2]
[362327956,1748196634280,-420.0,0.00019994,2]
[362327957,1748196634290,-420.0,0.00019994,2]
[362327958,1748196634301,-420.0,0.00019994,2]
[362327959,1748196634311,-420.0,0.00019994,2]
[362327960,1748196634321,-420.0,0.00019994,2]
[362327961,1748196634332,-536.70927918,0.00019994,2]
[362327962,1748196634341,-420.0,0.00019994,2]
[362327963,1748196634351,-420.0,0.00019994,2]
[362327964,1748196634361,-420.0,0.00019994,2]
[362327965,1748196634370,-420.0,0.00019994,2]
[362327966,1748196634380,-426.60862792,0.00019994,2]
[362327967,1748196634390,-440.89450536,0.00019994,2]
[362327968,1748196634400,-420.0,0.00019994,2]
[362327969,1748196634413,-214.6801448,0.00019994,2]
[362327970,1748196634423,-267.97215864,0.00019994,2]
[362327971,1748196634433,-319.90778846,0.00019994,2]
[362327972,1748196634443,-420.0,0.00019994,2]
[362327973,1748196634452,-420.0,0.00019994,2]
[362327974,1748196634461,-420.0,0.00019994,2]
[362327975,1748196634471,-420.0,0.00019994,2]
[362327976,1748196634481,-420.0,0.00019994,2]
[362327977,1748196634492,-420.0,0.00019994,2]
[362327978,1748196634502,-420.0,0.00019994,2]
[362327979,1748196634511,-432.52124467,0.00019994,2]
[362327980,1748196634521,-420.0,0.00019994,2]
[362327981,1748196634529,-558.34016873,0.00019994,2]
[362327982,1748196634539,-420.0,0.00019994,2]
[362327983,1748196634549,-424.06143775,0.00019994,2]
[362327984,1748196634558,-166.45013626,0.00019994,2]
[362327985,1748196634568,-420.0,0.00019994,2]
[362327986,1748196634577,-420.0,0.00019994,2]
[362327987,1748196634587,-420.0,0.00019994,2]
[362327988,1748196634597,-306.73164455,0.00019994,2]
[362327989,1748196634607,-420.0,0.00019994,2]
[362327990,1748196634616,-441.22992171,0.00019994,2]
[362327991,1748196634625,-420.0,0.00019994,2]
[362327992,1748196634635,-420.0,0.00019994,2]
[362327993,1748196634647,-420.0,0.00019994,2]
[362327994,1748196634658,-452.59614347,0.00019994,2]
[362327995,1748196634668,-152.1194269,0.00019994,2]
[362327996,1748196634677,-420.0,0.00019994,2]
[362327997,1748196634686,-420.0,0.00019994,2]
[362327998,1748196634696,-420.0,0.00019994,2]
[362327999,1748196634706,-420.0,0.00019994,2]
[362328000,1748196634715,-420.0,0.00019994,2]
[362328001,1748196634725,-354.87062839,0.00019994,2]
[362328002,1748196634734,-420.0,0.00019994,2]
[362328003,1748196634743,-420.0,0.00019994,2]
[362328004,1748196634752,-551.21935671,0.00019994,2]
[362328005,1748196634761,-420.0,0.00019994,2]
[362328006,1748196634771,-420.0,0.00019994,2]
[362328007,1748196634780,-420.0,0.00019994,2]
[362328008,1748196634789,-208.10077404,0.00019994,2]
[362328009,1748196634799,-420.0,0.00019994,2]
[362328010,1748196634808,-420.0,0.00019994,2]
[362328011,1748196634817,-420.0,0.00019994,2]
[362328012,1748196634827,-420.0,0.00019994,2]
[362328013,1748196634836,-187.79264722,0.00019994,2]
[362328014,1748196634845,-420.0,0.00019994,2]
[362328015,1748196634855,-420.0,0.00019994,2]
[362328016,1748196634865,-420.0,0.00019994,2]
[362328017,1748196634874,-718.63,0.00019994,2]
[362328018,1748196634886,-420.0,0.00019994,2]
[362328019,1748196634896,-420.0,0.00019994,2]
[362328020,1748196634906,-508.48792638,0.00019994,2]
[362328021,1748196634915,-420.0,0.00019994,2]
[362328022,1748196634924,-420.0,0.00019994,2]
[362328023,1748196634934,-389.42226546,0.00019994,2]
[362328024,1748196634943,-420.0,0.00019994,2]
[362328025,1748196634953,-420.0,0.00019994,2]
[362328026,1748196634963,-420.0,0.00019994,2]
[362328027,1748196634972,-420.0,0.00019994,2]
[362328028,1748196634982,-420.0,0.00019994,2]
[362328029,1748196634992,-420.0,0.00019994,2]
[362328030,1748196635001,-557.94279715,0.00019994,2]
[362328031,1748196635011,-420.0,0.00019994,2]
[362328032,1748196635021,-420.0,0.00019994,2]
[362328033,1748196635030,-420.0,0.00019994,2]
[362328034,1748196635040,-420.0,0.00019994,2]
[362328035,1748196635049,-420.0,0.00019994,2]
[362328036,1748196635059,-420.0,0.00019994,2]
[362328037,1748196635068,-420.0,0.00019994,2]
[362328038,1748196635078,-420.0,0.00019994,2]
[362328039,1748196635090,-420.0,0.00019994,2]
[362328040,1748196635100,-420.0,0.00019994,2]
[362328041,1748196635109,-420.0,0.00019994,2]
[362328042,1748196635118,-420.0,0.00019994,2]
[362328043,1748196635129,-554.31076384,0.00019994,2]
[362328044,1748196635139,-420.0,0.00019994,2]
[362328045,1748196635148,-420.0,0.00019994,2]
[362328046,1748196635161,-420.0,0.00019994,2]
[362328047,1748196635172,-420.0,0.00019994,2]
[362328048,1748196635182,-420.0,0.00019994,2]
[362328049,1748196635192,-2000.0,0.00019994,2]
[362328050,1748196635202,-177.10441233,0.00019994,2]
[362328051,1748196635213,-420.0,0.00019994,2]
[362328052,1748196635222,-420.0,0.00019994,2]
[362328053,1748196635234,-420.0,0.00019994,2]
[362328054,1748196635244,-420.0,0.00019994,2]
[362328055,1748196635255,-1330.19,0.00019994,2]
[362328056,1748196635264,-420.0,0.00019994,2]
[362328057,1748196635274,-424.51874007,0.00019994,2]
[362328058,1748196635285,-420.0,0.00019994,2]
[362328059,1748196635294,-420.0,0.00019994,2]
[362328060,1748196635305,-420.0,0.00019994,2]
[362328061,1748196635315,-420.0,0.00019994,2]
[362328062,1748196635325,-420.0,0.00019994,2]
[362328063,1748196635335,-420.0,0.00019994,2]
[362328064,1748196635345,-420.0,0.00019994,2]
[362328065,1748196635355,-420.0,0.00019994,2]
[362328066,1748196635364,-420.0,0.00019994,2]
[362328067,1748196635374,-420.0,0.00019994,2]
[362328068,1748196635384,-420.0,0.00019994,2]
[362328069,1748196635393,-420.0,0.00019994,2]
[362328070,1748196635407,-420.0,0.00019994,2]
[362328071,1748196635417,-420.0,0.00019994,2]
[362328072,1748196635427,-382.88372894,0.00019994,2]
[362328073,1748196635437,-445.20770465,0.00019994,2]
[362328074,1748196635447,-420.0,0.00019994,2]
[362328075,1748196635456,-420.0,0.00019994,2]
[362328076,1748196635466,-420.0,0.00019994,2]
[362328077,1748196635475,-420.0,0.00019994,2]
[362328078,1748196635486,-421.82,0.00019994,2]
[362328079,1748196635495,-420.0,0.00019994,2]
[362328080,1748196635505,-420.0,0.00019994,2]
[362328081,1748196635515,-420.0,0.00019994,2]
[362328082,1748196635524,-420.0,0.00019994,2]
[362328083,1748196635534,-420.0,0.00019994,2]
[362328084,1748196635544,-420.0,0.00019994,2]
[362328085,1748196635554,-420.0,0.00019994,2]
[362328086,1748196635564,-420.0,0.00019994,2]
[362328087,1748196635574,-420.0,0.00019994,2]
[362328088,1748196635583,-420.0,0.00019994,2]
[362328089,1748196635593,-420.0,0.00019994,2]
[362328090,1748196635603,-420.0,0.00019994,2]
[362328091,1748196635613,-432.90526627,0.00019994,2]
[362328092,1748196635623,-420.0,0.00019994,2]
[362328093,1748196635633,-420.0,0.00019994,2]
[362328094,1748196635642,-420.0,0.00019994,2]
[362328095,1748196635654,-420.0,0.00019994,2]
[362328096,1748196635664,-420.0,0.00019994,2]
[362328097,1748196635674,-420.0,0.00019994,2]
[362328098,1748196635683,-331.05564191,0.00019994,2]
[362328099,1748196635693,-420.0,0.00019994,2]
[362328100,1748196635703,-420.0,0.00019994,2]
[362328101,1748196635713,-420.0,0.00019994,2]
[362328102,1748196635722,-420.0,0.00019994,2]
[362328103,1748196635732,-420.0,0.00019994,2]
[362328104,1748196635742,-420.0,0.00019994,2]
[362328105,1748196635752,-420.0,0.00019994,2]
[362328106,1748196635762,-420.0,0.00019994,2]
[362328107,1748196635771,-420.0,0.00019994,2]
[362328108,1748196635780,-420.0,0.00019994,2]
[362328109,1748196635790,-420.0,0.00019994,2]
[362328110,1748196635800,-420.0,0.00019994,2]
[362328111,1748196635809,-173.89787258,0.00019994,2]
[362328112,1748196635819,-420.0,0.00019994,2]
[362328113,1748196635828,-420.0,0.00019994,2]
[362328114,1748196635838,-420.0,0.00019994,2]
[362328115,1748196635847,-420.0,0.00019994,2]
[362328116,1748196635856,-420.0,0.00019994,2]
[362328117,1748196635866,-420.0,0.00019994,2]
[362328118,1748196635875,-420.0,0.00019994,2]
[362328119,1748196635884,-420.0,0.00019994,2]
[362328120,1748196635894,-420.0,0.00019994,2]
[362328121,1748196635904,-420.0,0.00019994,2]
[362328122,1748196635913,-420.0,0.00019994,2]
[362328123,1748196635923,-420.0,0.00019994,2]